bitfinex-derivatives/quotes_BTCF0:USTF0_20210102
["timestamp","ask_amount","ask_price","bid_price","bid_amount"]
[1609588265069,0.00040987,29747.0,29746.0,0.00038249]
[1609588271577,0.00040987,29747.0,29745.0,0.62748249]
[1609588272979,1.00040987,29747.0,29745.0,0.62748249]
[1609588273580,0.00040987,29746.0,29745.0,0.62748249]
[1609588273981,0.00040987,29746.0,29745.0,0.62786495]
[1609588274985,0.17879558,29748.0,29745.0,0.62786495]
[1609588275386,0.00040988,29747.0,29746.0,0.0003825]
[1609588284201,0.00040988,29747.0,29745.0,0.60886499]
[1609588285004,0.00040988,29747.0,29745.0,0.56216499]
[1609588286306,0.80595957,29748.0,29745.0,0.56216499]
[1609588294316,1.0,29747.0,29745.0,0.56216499]
[1609588294516,0.80595957,29748.0,29745.0,0.56216499]
[1609588294916,0.00040988,29746.0,29745.0,0.56216499]
[1609588295116,0.00040988,29747.0,29745.0,0.56216499]
[1609588299225,1.00040988,29747.0,29745.0,0.56216499]
[1609588299524,0.00040988,29746.0,29745.0,0.56216499]
[1609588300126,0.00040988,29746.0,29745.0,0.00038209]
[1609588300326,5.15880988,29746.0,29745.0,0.0413707]
[1609588300527,6.15880988,29746.0,29745.0,0.0413707]
[1609588300727,6.15676393,29746.0,29745.0,0.00038209]
[1609588301229,7.15676393,29746.0,29745.0,0.00038209]
[1609588303230,6.15676393,29746.0,29745.0,0.00038209]
[1609588303431,7.15676393,29746.0,29745.0,0.00038209]
[1609588305234,6.15676393,29746.0,29745.0,0.00038209]
[1609588305634,1.0,29746.0,29745.0,0.00038209]
[1609588307235,2.0,29746.0,29745.0,0.00038209]
[1609588309437,0.1014,29745.0,29744.0,0.09200209]
[1609588309638,1.1014,29745.0,29743.0,4.1065]
[1609588309839,1.1014,29745.0,29744.0,0.00038212]
[1609588310040,1.8198,29745.0,29744.0,0.00038212]
[1609588310441,1.82020991,29745.0,29744.0,0.00038212]
[1609588310642,1.8198,29745.0,29744.0,0.00038212]
[1609588310841,2.00023158,29745.0,29744.0,0.00038212]
[1609588311041,2.00023158,29745.0,29744.0,0.16227]
[1609588311241,2.9981855,29745.0,29744.0,0.16227]
[1609588312545,1.9981855,29745.0,29744.0,0.16227]
[1609588314048,1.9981855,29745.0,29744.0,0.26377]
[1609588314247,1.9981855,29745.0,29744.0,0.16227]
[1609588314447,0.9981855,29745.0,29744.0,0.16227]
[1609588315147,0.9981855,29745.0,29744.0,0.26437]
[1609588315348,1.9981855,29745.0,29744.0,0.26437]
[1609588315549,2.9981855,29745.0,29744.0,0.16227]
[1609588315947,2.9981855,29745.0,29744.0,0.12827]
[1609588316350,2.2797855,29745.0,29744.0,0.12827]
[1609588316549,5.4607855,29745.0,29740.0,5.1075]
[1609588316750,5.4607855,29745.0,29741.0,0.1014]
[1609588316950,5.28035392,29745.0,29742.0,0.0999]
[1609588317151,5.28035392,29745.0,29742.0,0.10028209]
[1609588317350,4.28035392,29745.0,29743.0,0.00038209]
[1609588317853,4.28035392,29745.0,29743.0,0.14769209]
[1609588318251,4.28035392,29745.0,29744.0,0.00038209]
[1609588318652,4.28035392,29745.0,29743.0,0.14359209]
[1609588319054,0.18043158,29744.0,29743.0,0.14359209]
[1609588319254,1.18043158,29744.0,29743.0,0.14359209]
[1609588319654,1.18043158,29744.0,29743.0,0.24507414]
[1609588319854,1.18043158,29744.0,29743.0,0.21287414]
[1609588320658,1.18043158,29744.0,29743.0,0.11177414]
[1609588321256,1.18084149,29744.0,29743.0,0.11177414]
[1609588321756,1.18084149,29744.0,29743.0,0.21327414]
[1609588322759,1.17879543,29744.0,29743.0,0.21327414]
[1609588323560,1.17879543,29744.0,29743.0,0.11177414]
[1609588323860,1.17879543,29744.0,29743.0,0.03747414]
[1609588326064,1.17879543,29744.0,29740.0,4.5589]
[1609588326563,1.17838552,29744.0,29741.0,0.00038205]
[1609588327264,1.0,29743.0,29741.0,0.00038205]
[1609588327463,1.00040992,29743.0,29741.0,0.041374]
[1609588327762,1.0,29743.0,29741.0,0.041374]
[1609588328665,1.0,29743.0,29742.0,0.00038205]
[1609588329065,1.00040992,29743.0,29741.0,0.04137366]
[1609588329265,0.00040992,29743.0,29741.0,0.04137366]
[1609588329465,0.00040992,29743.0,29742.0,0.00038205]
[1609588329665,0.00040992,29743.0,29741.0,0.04137366]
[1609588329867,0.00040992,29743.0,29742.0,0.00038205]
[1609588330367,1.17838552,29744.0,29742.0,0.13678]
[1609588330767,1.17838552,29744.0,29742.0,0.13716205]
[1609588330970,1.17838552,29744.0,29743.0,0.00038205]
[1609588331168,1.17879543,29744.0,29743.0,0.00038205]
[1609588331970,1.17838552,29744.0,29743.0,0.00038205]
[1609588332671,1.17838552,29744.0,29743.0,4.38318205]
[1609588332870,1.17879542,29744.0,29743.0,4.38318205]
[1609588333272,0.17879542,29744.0,29743.0,4.38318205]
[1609588336177,0.17838552,29744.0,29743.0,4.42416878]
[1609588337880,0.00428962,29752.0,29743.0,4.42416878]
[1609588338281,0.00040984,29751.0,29744.0,0.04136601]
[1609588338984,0.00040984,29751.0,29750.0,0.18043158]
[1609588339182,0.00040984,29751.0,29750.0,0.96923158]
[1609588339383,0.00040984,29751.0,29750.0,0.96961343]
[1609588340985,0.18084142,29751.0,29750.0,0.96961343]
[1609588341186,0.18043158,29751.0,29750.0,0.96961343]
[1609588343089,0.18043158,29751.0,29750.0,1.01059338]
[1609588343291,0.18043158,29751.0,29750.0,0.96961343]
[1609588358706,0.17838627,29751.0,29750.0,0.96961343]
[1609588366209,0.17838627,29751.0,29750.0,1.01059059]
[1609588369915,0.176341,29751.0,29750.0,1.01059059]
[1609588377727,0.00778491,29754.0,29750.0,1.01059059]
[1609588377927,0.00778491,29754.0,29750.0,2.01059059]
[1609588378128,0.00778491,29754.0,29751.0,0.04135686]
[1609588378528,0.00778491,29754.0,29751.0,1.04135686]
[1609588379128,0.00778491,29754.0,29752.0,0.04135321]
[1609588379327,0.00778491,29754.0,29753.0,5.3959]
[1609588379527,0.00778491,29754.0,29753.0,5.57633158]
[1609588379728,0.00778491,29754.0,29753.0,5.61768477]
[1609588380929,0.00778491,29754.0,29753.0,5.57671331]
[1609588385939,0.00574,29754.0,29753.0,5.57671331]
[1609588387340,0.00574,29754.0,29753.0,0.18081331]
[1609588389241,0.00574,29754.0,29753.0,5.14431331]
[1609588394550,1.00574,29754.0,29753.0,0.18081331]
[1609588394750,5.47044,29754.0,29753.0,0.00038173]
[1609588394951,5.47084975,29754.0,29750.0,1.9241774]
[1609588395151,1.10614975,29754.0,29750.0,1.7061774]
[1609588395352,0.00040977,29753.0,29750.0,1.5013774]
[1609588395551,0.18043158,29751.0,29750.0,1.2770774]
[1609588395752,1.18084142,29751.0,29750.0,0.8649774]
[1609588395952,1.18084142,29751.0,29750.0,0.63665926]
[1609588396152,5.78574142,29751.0,29750.0,0.59655926]
[1609588396855,5.78574142,29751.0,29750.0,0.54935926]
[1609588397356,6.78574142,29751.0,29750.0,0.5489774]
[1609588397555,6.78574142,29751.0,29750.0,0.5422774]
[1609588397757,6.78574142,29751.0,29744.0,2.21139803]
[1609588397956,6.78369537,29751.0,29744.0,2.15049803]
[1609588398358,6.78369537,29751.0,29745.0,0.00038227]
[1609588398359,0.00040991,29750.0,29745.0,0.00038227]
[1609588398857,0.00427982,29747.0,29745.0,0.00038227]
[1609588399058,0.7777,29743.0,29740.0,0.00038227]
[1609588399257,1.0994,29742.0,29739.0,5.2739]
[1609588399458,0.1005,29741.0,29739.0,5.2739]
[1609588399657,1.98533158,29740.0,29739.0,5.2739]
[1609588400059,1.98533158,29740.0,29739.0,5.27428227]
[1609588400257,1.98533158,29740.0,29739.0,0.00038227]
[1609588400458,1.98533158,29740.0,29737.0,0.00038227]
[1609588400758,1.98533158,29740.0,29739.0,0.00038227]
[1609588401060,1.98533158,29740.0,29738.0,0.00038227]
[1609588401258,1.98533158,29740.0,29737.0,0.00038227]
[1609588401458,2.98533158,29740.0,29737.0,0.00038227]
[1609588401658,2.98533158,29740.0,29739.0,0.00038227]
[1609588401858,2.98533158,29740.0,29737.0,0.00038227]
[1609588402058,2.98533158,29740.0,29739.0,0.00038227]
[1609588402258,1.18043158,29740.0,29739.0,0.00038227]
[1609588402458,1.18043158,29740.0,29738.0,4.31838227]
[1609588402659,1.18043158,29740.0,29739.0,0.00038227]
[1609588403359,0.18043158,29740.0,29739.0,0.00038227]
[1609588404161,0.18043158,29740.0,29739.0,0.00038225]
[1609588405463,0.18043158,29740.0,29737.0,0.00038225]
[1609588405664,4.5358,29738.0,29737.0,0.00038225]
[1609588405863,4.5358,29738.0,29736.0,0.17359]
[1609588406064,4.5358,29738.0,29737.0,0.00038224]
[1609588410775,4.5358,29738.0,29737.0,0.00038226]
[1609588412276,0.18043158,29740.0,29737.0,0.00038226]
[1609588414781,3.9237,29738.0,29737.0,0.00038226]
[1609588416785,3.92165395,29738.0,29737.0,0.00038226]
[1609588418889,4.92165395,29738.0,29737.0,0.00038226]
[1609588419290,5.92165395,29738.0,29737.0,0.00038226]
[1609588420590,5.92165395,29738.0,29736.0,0.15409]
[1609588420990,5.92165395,29738.0,29730.0,0.17348]
[1609588421492,5.92165395,29738.0,29730.0,0.16208]
[1609588421692,0.18043158,29731.0,29730.0,0.16208]
[1609588422094,0.18043158,29731.0,29727.0,0.18043158]
[1609588422297,0.18043158,29731.0,29730.0,0.00038234]
[1609588422495,0.18043158,29731.0,29728.0,0.00038234]
[1609588422695,0.18043158,29731.0,29730.0,5.58538234]
[1609588422896,0.18043158,29731.0,29730.0,5.585]
[1609588423297,0.18043158,29731.0,29730.0,5.58538234]
[1609588423497,0.18043158,29731.0,29730.0,5.74345002]
[1609588423697,0.18043158,29731.0,29730.0,5.9238816]
[1609588423897,0.18043158,29731.0,29730.0,6.0235816]
[1609588424097,0.18043158,29731.0,29730.0,5.9238816]
[1609588424499,0.18043158,29731.0,29730.0,0.3388816]
[1609588431211,0.17838536,29731.0,29730.0,0.3388816]
[1609588432408,0.17838536,29731.0,29730.0,1.1285816]
[1609588440018,0.16838536,29731.0,29730.0,1.1285816]
[1609588441219,0.15838536,29731.0,29730.0,1.1285816]
[1609588441922,0.2864,29739.0,29730.0,1.1285816]
[1609588442120,1.0,29747.0,29731.0,1.0]
[1609588442320,1.0,29747.0,29741.0,0.00204592]
[1609588442719,0.00040988,29746.0,29742.0,0.04137025]
[1609588442919,1.0,29747.0,29745.0,5.2217]
[1609588443319,0.42392697,29753.0,29745.0,5.2217]
[1609588443520,0.42392697,29753.0,29746.0,0.00038217]
[1609588443720,0.0004098,29752.0,29746.0,0.04136185]
[1609588443921,0.18084138,29752.0,29751.0,0.18043158]
[1609588444121,0.18043158,29752.0,29751.0,0.18043158]
[1609588444321,0.18084137,29752.0,29751.0,0.18081373]
[1609588446123,0.18043158,29752.0,29751.0,0.18081373]
[1609588451530,0.77543158,29752.0,29751.0,0.18081373]
[1609588451731,1.87653158,29752.0,29751.0,0.00038215]
[1609588451930,1.28153158,29752.0,29751.0,0.00038215]
[1609588452332,1.28153158,29752.0,29748.0,0.00038221]
[1609588452531,1.28153158,29752.0,29751.0,0.00038221]
[1609588452731,1.28153158,29752.0,29749.0,0.00038223]
[1609588452931,0.18043158,29752.0,29749.0,0.00038223]
[1609588453131,0.18043158,29752.0,29747.0,0.01]
[1609588453333,0.18043158,29752.0,29750.0,0.00038224]
[1609588453533,3.9834,29749.0,29745.0,0.0528]
[1609588453735,3.9834,29749.0,29746.0,0.00038224]
[1609588453935,0.18043158,29747.0,29746.0,0.00038224]
[1609588461544,0.18043158,29747.0,29745.0,0.0479]
[1609588461745,0.18043158,29747.0,29745.0,0.038]
[1609588462146,0.18043158,29747.0,29743.0,4.7096]
[1609588462447,0.18043158,29747.0,29744.0,0.0003815]
[1609588463853,0.18043158,29747.0,29745.0,0.18043158]
[1609588464352,0.18043158,29747.0,29746.0,0.00038148]
[1609588473567,0.17838572,29747.0,29746.0,0.00038148]
[1609588479574,1.17838572,29747.0,29746.0,0.00038148]
[1609588480176,5.81909562,29747.0,29740.0,0.0003815]
[1609588480376,0.0004099,29746.0,29740.0,0.0003815]
[1609588480576,0.1017,29745.0,29740.0,0.0003815]
[1609588480777,1.0,29744.0,29740.0,0.0003815]
[1609588480978,1.00040995,29744.0,29740.0,0.0003815]
[1609588481177,0.00040995,29743.0,29740.0,0.0003815]
[1609588481377,1.0,29741.0,29740.0,0.0003815]
[1609588481578,2.7835,29741.0,29740.0,0.0003815]
[1609588481979,2.96434153,29741.0,29740.0,0.0003815]
[1609588482280,1.96434153,29741.0,29740.0,0.0003815]
[1609588482479,1.86294153,29741.0,29740.0,0.0003815]
[1609588485382,0.86294153,29741.0,29740.0,0.0003815]
[1609588486183,0.86253158,29741.0,29740.0,0.0003815]
[1609588495302,0.96413158,29741.0,29740.0,0.0003815]
[1609588495502,1.96413158,29741.0,29740.0,0.0003815]
[1609588496903,1.96413158,29741.0,29733.0,0.00038157]
[1609588497204,1.96413158,29741.0,29740.0,0.00038157]
[1609588497405,1.96413158,29741.0,29734.0,0.00038157]
[1609588497705,1.96413158,29741.0,29740.0,0.00038157]
[1609588497905,1.96413158,29741.0,29735.0,0.00038157]
[1609588498105,0.18043158,29736.0,29735.0,0.00038157]
[1609588498306,0.74643158,29736.0,29733.0,0.00038157]
[1609588498507,0.74643158,29736.0,29735.0,0.00038157]
[1609588498706,0.74643158,29736.0,29734.0,0.00038157]
[1609588499007,0.74438523,29736.0,29735.0,0.00038157]
[1609588499608,0.74438523,29736.0,29733.0,0.00038157]
[1609588501411,0.17838523,29736.0,29733.0,0.00038157]
[1609588501711,0.17838523,29736.0,29734.0,3.8227]
[1609588501911,0.17838523,29736.0,29735.0,0.00038157]
[1609588504415,0.17838523,29736.0,29735.0,4.14188157]
[1609588506414,0.17838523,29736.0,29735.0,4.18287644]
[1609588507617,0.17838523,29736.0,29735.0,0.04137644]
[1609588509821,0.17838523,29736.0,29735.0,5.25207644]
[1609588513229,0.17633911,29736.0,29735.0,5.25207644]
[1609588518735,4.8095,29741.0,29735.0,5.25207644]
[1609588519036,4.8095,29741.0,29736.0,0.04137486]
[1609588519435,4.8095,29741.0,29736.0,0.16224486]
[1609588519938,4.8095,29741.0,29737.0,0.04137468]
[1609588520638,4.8095,29741.0,29740.0,0.18043158]
[1609588520838,0.18043158,29745.0,29740.0,0.18043158]
[1609588521037,0.18043158,29745.0,29741.0,4.7664]
[1609588521238,0.18043158,29745.0,29741.0,4.76678205]
[1609588521640,0.759,29744.0,29742.0,0.00038205]
[1609588521838,0.18043158,29745.0,29742.0,0.00038205]
[1609588522039,0.18043158,29745.0,29741.0,0.00038205]
[1609588522240,0.18043158,29745.0,29743.0,0.00038205]
[1609588522443,0.18043158,29745.0,29742.0,0.00038205]
[1609588522641,0.18043158,29745.0,29744.0,4.28593158]
[1609588522844,0.16988307,29751.0,29744.0,4.28593158]
[1609588523041,0.16988307,29751.0,29744.0,0.18043158]
[1609588523241,0.16988307,29751.0,29750.0,4.8816]
[1609588523641,0.16988307,29751.0,29750.0,4.88198202]
[1609588524543,0.00428307,29751.0,29750.0,4.88198202]
[1609588524744,0.18471465,29751.0,29750.0,0.1808136]
[1609588525049,0.18043158,29751.0,29750.0,4.2899136]
[1609588537363,0.17838595,29751.0,29750.0,4.2899136]
[1609588540667,0.17838595,29751.0,29750.0,4.3199136]
[1609588544770,0.18617158,29754.0,29750.0,4.3199136]
[1609588545172,0.18617158,29754.0,29751.0,0.00038196]
[1609588546775,0.18617158,29754.0,29753.0,0.18043158]
[1609588546975,0.18617158,29754.0,29753.0,0.86773158]
[1609588547374,0.18617158,29754.0,29753.0,0.86811354]
[1609588547575,0.18658141,29754.0,29753.0,0.86811354]
[1609588553083,0.18084141,29754.0,29753.0,0.86811354]
[1609588554184,0.18043158,29754.0,29753.0,0.86811354]
[1609588554686,0.18084138,29754.0,29753.0,0.86811354]
[1609588554985,0.18043158,29754.0,29753.0,0.86811354]
[1609588559789,0.17838615,29754.0,29753.0,0.86811354]
[1609588559990,0.17879596,29754.0,29753.0,0.86811354]
[1609588561489,1.17879596,29754.0,29753.0,0.00038196]
[1609588561688,6.49859596,29754.0,29753.0,0.00038196]
[1609588562088,6.49859596,29754.0,29751.0,0.00038198]
[1609588562488,6.49859596,29754.0,29753.0,0.00038198]
[1609588562690,6.49859596,29754.0,29751.0,0.000382]
[1609588562888,6.60029596,29754.0,29753.0,0.000382]
[1609588563289,0.00040989,29753.0,29752.0,0.000382]
[1609588563491,7.60457487,29754.0,29750.0,0.03]
[1609588563690,0.00040989,29753.0,29752.0,0.00038202]
[1609588563891,0.00040989,29753.0,29751.0,0.00038202]
[1609588564092,0.0996,29752.0,29751.0,0.00038202]
[1609588564291,0.0996,29752.0,29750.0,0.03]
[1609588564493,0.10000989,29752.0,29751.0,0.00038202]
[1609588564692,1.0996,29752.0,29751.0,0.00038202]
[1609588564993,1.1000099,29752.0,29751.0,0.00038202]
[1609588565393,2.1000099,29752.0,29751.0,0.00038202]
[1609588566695,2.1000099,29752.0,29746.0,4.2581]
[1609588567094,0.18043158,29747.0,29746.0,4.2581]
[1609588567294,1.18043158,29747.0,29746.0,4.2581]
[1609588567494,2.18084148,29747.0,29746.0,4.25848202]
[1609588569698,2.18043158,29747.0,29746.0,4.25848202]
[1609588569899,2.18084147,29747.0,29746.0,4.25848202]
[1609588570098,2.18043158,29747.0,29746.0,4.25848202]
[1609588572304,1.18043158,29747.0,29746.0,4.25848202]
[1609588573406,0.18043158,29747.0,29746.0,4.25848202]
[1609588574006,1.18043158,29747.0,29746.0,4.25848202]
[1609588574608,1.1783856,29747.0,29746.0,4.25848202]
[1609588575408,2.1783856,29747.0,29746.0,0.00038202]
[1609588575808,2.1783856,29747.0,29744.0,0.00038204]
[1609588576008,4.8019,29745.0,29742.0,0.0373]
[1609588576210,1.0,29744.0,29738.0,4.8875]
[1609588576409,1.0,29744.0,29743.0,0.00038206]
[1609588576609,1.0,29744.0,29739.0,0.00038206]
[1609588577009,1.0,29744.0,29743.0,0.00038237]
[1609588577210,1.18043158,29744.0,29739.0,0.00038239]
[1609588577411,2.28133158,29744.0,29743.0,0.00038239]
[1609588577710,2.28133158,29744.0,29740.0,0.00038239]
[1609588577911,2.28133158,29744.0,29739.0,0.00038239]
[1609588578211,2.28133158,29744.0,29741.0,0.00038239]
[1609588578411,2.28133158,29744.0,29740.0,0.00038239]
[1609588578714,2.28133158,29744.0,29742.0,0.00038239]
[1609588579112,2.28133158,29744.0,29741.0,0.00038239]
[1609588579313,2.28133158,29744.0,29739.0,0.00038239]
[1609588579515,1.0,29743.0,29742.0,0.00038239]
[1609588579712,2.0,29743.0,29742.0,0.00038239]
[1609588579912,2.0,29743.0,29740.0,0.00038239]
[1609588580112,2.0,29743.0,29742.0,0.00038239]
[1609588580311,2.0,29743.0,29741.0,0.00038239]
[1609588580612,2.0,29743.0,29742.0,0.00038239]
[1609588580812,2.0,29743.0,29739.0,0.00038239]
[1609588581215,2.0,29743.0,29742.0,0.00038239]
[1609588581412,1.0,29743.0,29740.0,0.00038239]
[1609588581613,1.0,29743.0,29742.0,0.00038239]
[1609588582014,1.0,29743.0,29741.0,0.00038239]
[1609588582215,1.0,29743.0,29742.0,0.00038239]
[1609588582614,1.0,29744.0,29742.0,0.00038239]
[1609588582816,1.0,29744.0,29742.0,4.4286]
[1609588583215,0.18043158,29743.0,29742.0,4.4286]
[1609588583415,1.18043158,29743.0,29742.0,4.4286]
[1609588583718,1.18043158,29743.0,29742.0,4.42898239]
[1609588585221,1.16043158,29743.0,29742.0,4.42898239]
[1609588585421,0.16043158,29743.0,29742.0,4.42898239]
[1609588587424,1.16043158,29743.0,29742.0,4.42898239]
[1609588588328,1.16043158,29743.0,29742.0,4.42898238]
[1609588591431,0.16043158,29743.0,29742.0,4.42898238]
[1609588605454,0.15838551,29743.0,29742.0,4.42898238]
[1609588613468,1.15838551,29743.0,29742.0,4.42898238]
[1609588615473,0.15838551,29743.0,29742.0,4.42898238]
[1609588615971,0.15838551,29743.0,29742.0,0.00038238]
[1609588616171,0.15879547,29743.0,29742.0,0.00038238]
[1609588616372,0.01,29742.0,29738.0,0.18043158]
[1609588616571,4.9074,29742.0,29738.0,0.18043158]
[1609588616973,4.9074,29742.0,29739.0,0.00038237]
[1609588617173,4.9074,29742.0,29739.0,0.68968237]
[1609588617374,0.18043158,29740.0,29739.0,0.6793]
[1609588619275,0.18043158,29740.0,29739.0,0.6693]
[1609588621679,0.18043158,29740.0,29739.0,0.66968237]
[1609588621879,0.17838534,29740.0,29739.0,0.66968237]
[1609588630690,0.17838534,29740.0,29739.0,0.00038237]
[1609588631694,0.17838534,29740.0,29739.0,0.77298237]
[1609588632795,0.17838534,29740.0,29739.0,0.7392]
[1609588632996,0.17838534,29740.0,29739.0,0.6387]
[1609588635398,0.17838534,29740.0,29739.0,0.67969371]
[1609588635900,0.17633925,29740.0,29739.0,0.67969371]
[1609588647108,0.17429325,29740.0,29739.0,0.67969371]
[1609588665644,0.17224729,29740.0,29739.0,0.67969371]
[1609588676058,0.17020122,29740.0,29739.0,0.67969371]
[1609588684368,0.92590122,29740.0,29739.0,0.67969371]
[1609588691281,0.92385515,29740.0,29739.0,0.67969371]
[1609588694689,0.92385515,29740.0,29739.0,0.68007553]
[1609588695189,0.16815515,29740.0,29739.0,0.68007553]
[1609588701397,0.16610908,29740.0,29739.0,0.68007553]
[1609588706007,0.01,29742.0,29739.0,0.68007553]
[1609588706605,0.01,29742.0,29740.0,0.04136967]
[1609588706805,0.01,29742.0,29741.0,0.18043158]
[1609588707105,0.01,29742.0,29741.0,4.86433158]
[1609588707305,0.01,29742.0,29741.0,4.90570098]
[1609588710510,0.01,29742.0,29741.0,4.86471318]
[1609588710710,0.19043158,29742.0,29741.0,4.86471318]
[1609588711010,0.19043158,29742.0,29741.0,4.90570348]
[1609588712011,0.1883856,29742.0,29741.0,4.90570348]
[1609588715514,0.1883856,29742.0,29741.0,4.86471318]
[1609588716316,0.1883856,29742.0,29741.0,4.90570414]
[1609588716516,0.18043158,29742.0,29741.0,4.90570414]
[1609588720520,0.17043158,29742.0,29741.0,4.90570414]
[1609588722625,0.16838563,29742.0,29741.0,4.90570414]
[1609588722824,0.18043158,29747.0,29741.0,4.90570414]
[1609588723225,0.18043158,29747.0,29742.0,0.04136919]
[1609588723628,0.18043158,29747.0,29742.0,0.19670919]
[1609588724030,0.18043158,29747.0,29743.0,0.04136587]
[1609588724732,0.18043158,29747.0,29746.0,5.1748]
[1609588724933,0.18043158,29747.0,29746.0,5.35523158]
[1609588725131,0.18043158,29747.0,29746.0,5.35561314]
[1609588729941,0.18043158,29747.0,29746.0,5.38561314]
[1609588732746,0.18043158,29747.0,29746.0,5.42659644]
[1609588733245,0.178386,29747.0,29746.0,5.42659644]
[1609588734046,0.178386,29747.0,29746.0,5.38561314]
[1609588742559,0.178386,29747.0,29746.0,5.42659613]
[1609588747162,0.17634036,29747.0,29746.0,5.42659613]
[1609588752373,0.2727,29748.0,29746.0,5.24616455]
[1609588752772,0.2727,29748.0,29747.0,0.04136435]
[1609588752972,0.45313158,29748.0,29747.0,0.22179593]
[1609588753173,0.45313158,29748.0,29747.0,5.11189593]
[1609588757479,0.45108601,29748.0,29747.0,5.11189593]
[1609588764486,0.18043158,29748.0,29747.0,5.11189593]
[1609588767688,0.17838609,29748.0,29747.0,5.11189593]
[1609588767989,0.00428453,29756.0,29747.0,5.11189593]
[1609588768489,0.00040979,29755.0,29748.0,0.04136093]
[1609588768690,0.00040979,29755.0,29754.0,4.2643]
[1609588769092,0.00040979,29755.0,29754.0,4.26468163]
[1609588769291,0.00040979,29755.0,29754.0,4.44511321]
[1609588769492,0.00040979,29756.0,29754.0,4.44511321]
[1609588769691,0.00040979,29755.0,29754.0,4.44511321]
[1609588769891,0.18505544,29760.0,29755.0,0.0003816]
[1609588770293,0.18505544,29760.0,29754.0,5.85578708]
[1609588770492,0.18505544,29760.0,29756.0,0.00038158]
[1609588770694,0.00040974,29759.0,29755.0,0.04135461]
[1609588770895,0.00040974,29759.0,29755.0,1.04135461]
[1609588771096,0.18505544,29760.0,29757.0,0.00038156]
[1609588771296,0.18505544,29760.0,29759.0,5.75033158]
[1609588771897,0.18505544,29760.0,29759.0,5.75071314]
[1609588772500,0.17036,29760.0,29759.0,5.75071314]
[1609588772697,0.18043158,29763.0,29759.0,5.75071314]
[1609588773098,0.18043158,29763.0,29760.0,0.00038156]
[1609588773299,0.18043158,29763.0,29762.0,0.18043158]
[1609588773699,0.18043158,29763.0,29762.0,0.18081314]
[1609588775802,0.18043158,29763.0,29762.0,4.17761314]
[1609588776003,0.18043158,29763.0,29762.0,0.00038156]
[1609588776504,0.18043158,29763.0,29760.0,0.00038156]
[1609588776804,0.18043158,29763.0,29762.0,0.00038156]
[1609588777003,0.18043158,29763.0,29761.0,0.00038156]
[1609588777404,0.18043158,29763.0,29762.0,0.18043158]
[1609588777604,0.18043158,29763.0,29762.0,0.18081314]
[1609588778005,0.28193158,29763.0,29762.0,0.18081314]
[1609588778406,0.28193158,29763.0,29762.0,5.21281314]
[1609588779007,0.28193158,29763.0,29762.0,5.31471314]
[1609588779309,0.28193158,29763.0,29762.0,5.13428156]
[1609588779509,0.18043158,29763.0,29762.0,0.00038156]
[1609588780109,0.18043158,29763.0,29760.0,0.00038158]
[1609588780511,0.18043158,29763.0,29761.0,0.1008]
[1609588781011,0.18043158,29763.0,29762.0,0.00038158]
[1609588781511,1.18084133,29763.0,29762.0,0.00038158]
[1609588781913,1.18084133,29763.0,29759.0,3.9144]
[1609588782312,1.18043158,29763.0,29760.0,0.00038159]
[1609588782512,0.0994,29762.0,29760.0,0.00038159]
[1609588782911,0.0994,29762.0,29760.0,0.10048159]
[1609588783413,0.0994,29762.0,29761.0,0.00038159]
[1609588783613,1.18043158,29763.0,29759.0,3.9144]
[1609588783913,0.00040976,29762.0,29760.0,0.0003816]
[1609588784514,0.10090976,29762.0,29760.0,0.1013816]
[1609588784914,0.00040976,29762.0,29759.0,3.8732]
[1609588785113,0.18043158,29763.0,29759.0,3.8732]
[1609588785313,0.00040975,29762.0,29760.0,0.00038159]
[1609588785812,0.18043158,29763.0,29760.0,0.00038159]
[1609588787414,0.18043158,29763.0,29760.0,0.18081317]
[1609588787915,0.18043158,29763.0,29761.0,0.00038159]
[1609588789617,1.18043158,29763.0,29761.0,0.00038159]
[1609588791819,1.18043158,29763.0,29749.0,0.04135721]
[1609588792319,1.18043158,29763.0,29762.0,0.00038159]
[1609588792520,1.18043158,29763.0,29750.0,0.00038159]
[1609588792720,1.18043158,29763.0,29762.0,0.00038159]
[1609588792922,1.18043158,29763.0,29751.0,0.00038159]
[1609588793120,1.18043158,29763.0,29762.0,0.00038159]
[1609588793423,1.18043158,29763.0,29752.0,0.00038159]
[1609588793621,1.18043158,29763.0,29756.0,0.18043158]
[1609588793823,1.18043158,29763.0,29762.0,0.00038159]
[1609588794023,1.18043158,29763.0,29757.0,0.00038159]
[1609588794223,1.18043158,29763.0,29762.0,0.00038159]
[1609588794423,1.18043158,29763.0,29762.0,0.09968159]
[1609588794623,1.18043158,29763.0,29762.0,0.0993]
[1609588794824,1.18043158,29763.0,29762.0,0.00038159]
[1609588795325,1.18043158,29763.0,29757.0,0.00038159]
[1609588795528,0.18043158,29758.0,29756.0,0.18043158]
[1609588796026,0.18043158,29758.0,29757.0,0.00038158]
[1609588800129,0.18084133,29758.0,29757.0,0.00038158]
[1609588800630,0.18084133,29758.0,29757.0,0.00038159]
[1609588800830,0.18084133,29758.0,29757.0,0.00076319]
[1609588801630,1.18084133,29758.0,29757.0,0.00076319]
[1609588803538,0.18084133,29758.0,29757.0,0.00076319]
[1609588807548,1.18084133,29758.0,29757.0,0.00076319]
[1609588807946,2.18084133,29758.0,29757.0,0.00076319]
[1609588808747,0.0093,29757.0,29748.0,0.10713]
[1609588808949,0.0093,29757.0,29746.0,0.03]
[1609588809149,0.00040985,29756.0,29749.0,0.00038169]
[1609588809447,0.1021,29755.0,29749.0,0.00038169]
[1609588809648,0.18043158,29750.0,29747.0,0.00038169]
[1609588809848,0.00040985,29749.0,29747.0,0.00038169]
[1609588812451,0.28213158,29750.0,29747.0,0.00038169]
[1609588813553,1.0,29748.0,29747.0,0.00038169]
[1609588815958,0.99795416,29748.0,29747.0,0.00038169]
[1609588816260,0.18043158,29750.0,29747.0,0.00038169]
[1609588822271,1.18043158,29750.0,29747.0,0.00038169]
[1609588824473,1.18043158,29750.0,29742.0,0.33577158]
[1609588824875,1.18043158,29750.0,29743.0,0.00038205]
[1609588825775,1.0,29750.0,29745.0,0.18043158]
[1609588826175,1.0,29750.0,29746.0,0.00038205]
[1609588826376,0.101,29752.0,29746.0,0.00038205]
[1609588826575,1.101,29752.0,29746.0,0.00038205]
[1609588827575,0.101,29752.0,29746.0,0.00038205]
[1609588827777,0.18043158,29747.0,29746.0,0.00038205]
[1609588829378,0.17838583,29747.0,29746.0,0.00038205]
[1609588830578,0.17838583,29747.0,29745.0,0.11413158]
[1609588832078,0.17838583,29747.0,29746.0,0.04098338]
[1609588832478,0.0093,29757.0,29746.0,0.04098338]
[1609588832979,0.00040982,29756.0,29746.0,0.04098338]
[1609588833779,0.00040982,29756.0,29752.0,0.18043158]
[1609588834180,0.00040982,29756.0,29753.0,0.000382]
[1609588835184,0.00040982,29758.0,29753.0,0.000382]